bitfinex/quotes_SOLUSD_20240909
["timestamp","ask_amount","ask_price","bid_price","bid_amount"]
[1725846798957,6.9514703,130.77,130.71,15.5768]
[1725846799155,45.0,130.76,130.71,15.5768]
[1725846799381,51.9510703,130.77,130.71,15.5768]
[1725846799678,6.118,130.76,130.71,15.5768]
[1725846799981,45.0,130.75,130.71,15.5768]
[1725846801418,45.0,130.76,130.71,15.5768]
[1725846802560,46.91247593,130.76,130.71,15.5768]
[1725846802752,45.0,130.76,130.71,15.5768]
[1725846807367,45.8334703,130.77,130.71,15.5768]
[1725846808416,45.0,130.76,130.71,15.5768]
[1725846808602,6.9510703,130.77,130.71,15.5768]
[1725846808799,51.1181,130.76,130.71,15.5768]
[1725846810402,45.0,130.76,130.71,15.5768]
[1725846812200,45.8334703,130.77,130.71,15.5768]
[1725846812895,45.0,130.76,130.71,15.5768]
[1725846813217,0.8334703,130.77,130.71,15.5768]
[1725846815319,2.74572626,130.77,130.71,15.5768]
[1725846815687,2.74570757,130.77,130.71,15.5768]
[1725846816310,6.9510703,130.77,130.71,15.5768]
[1725846816517,45.0,130.76,130.71,15.5768]
[1725846818411,1.91241323,130.75,130.71,15.5768]
[1725846819105,8.03131323,130.75,130.71,15.5768]
[1725846819318,45.0,130.74,130.71,15.5768]
[1725846821304,51.119,130.74,130.71,15.5768]
[1725846821908,45.0,130.74,130.71,15.5768]
[1725846822610,51.1191,130.74,130.71,15.5768]
[1725846822797,6.1195,130.73,130.68,6.3934]
[1725846823115,6.1204,130.71,130.67,15.3136]
[1725846823285,1.91275828,130.73,130.63,15.3136]
[1725846823286,6.1218,130.68,130.63,15.3136]
[1725846823609,45.0,130.67,130.63,15.3136]
[1725846824022,45.0,130.68,130.63,15.3136]
[1725846824395,1.91377977,130.67,130.63,15.3136]
[1725846824596,8.03607977,130.67,130.61,6.3297]
[1725846824794,8.03607977,130.67,130.58,6.3297]
[1725846824795,50.0,130.67,130.58,6.3297]
[1725846825111,6.1255,130.6,130.57,15.3136]
[1725846825419,45.0,130.59,130.54,6.3297]
[1725846825622,45.0,130.59,130.54,21.6433]
[1725846825999,46.91514091,130.59,130.54,21.6433]
[1725846826204,45.0,130.59,130.54,21.6433]
[1725846827210,46.91495768,130.59,130.54,15.3136]
[1725846827402,45.0,130.59,130.54,15.3136]
[1725846828213,46.91510626,130.59,130.54,15.3136]
[1725846828894,45.0,130.59,130.54,15.3136]
[1725846834324,46.91503561,130.59,130.54,15.3136]
[1725846834618,45.0,130.59,130.54,15.3136]
[1725846836819,8.04076387,130.6,130.54,15.3136]
[1725846837914,45.0,130.59,130.54,15.3136]
[1725846840330,8.04166739,130.58,130.51,22.3829]
[1725846840499,1.91527769,130.57,130.51,22.3829]
[1725846840843,46.91527769,130.57,130.51,22.3829]
[1725846841640,53.04217769,130.57,130.51,22.3829]
[1725846841917,53.04217769,130.57,130.51,16.0532]
[1725846843226,45.0,130.57,130.51,16.0532]
[1725846843607,46.91527828,130.57,130.51,16.0532]
[1725846843946,45.0,130.57,130.51,16.0532]
[1725846844299,15.76457271,130.58,130.51,16.0532]
[1725846844631,1.91493891,130.57,130.51,16.0532]
[1725846844813,6.1261,130.59,130.51,16.0532]
[1725846845026,1.91524775,130.58,130.51,16.0532]
[1725846845311,6.1261,130.59,130.51,16.0532]
[1725846845615,45.0,130.58,130.51,16.0532]
[1725846847104,45.0,130.59,130.51,16.0532]
[1725846847525,15.64109014,130.61,130.53,27.58712193]
[1725846848535,15.64109014,130.61,130.54,15.1892]
[1725846849722,45.0,130.6,130.54,15.1892]
[1725846860754,46.91458919,130.6,130.54,15.1892]
[1725846861048,51.1259,130.6,130.54,15.1892]
[1725846861824,46.91498952,130.6,130.54,15.1892]
[1725846862156,45.0,130.6,130.54,15.1892]
[1725846862651,51.1256,130.6,130.54,15.1892]
[1725846863148,45.0,130.6,130.54,15.1892]
[1725846865028,51.1256,130.6,130.54,15.1892]
[1725846865350,6.1269,130.57,130.52,6.4747]
[1725846865532,53.04319547,130.56,130.51,16.2379]
[1725846865731,6.128,130.55,130.51,16.2379]
[1725846865942,46.91555012,130.54,130.51,16.2379]
[1725846866325,45.0,130.54,130.51,16.2379]
[1725846867634,45.0,130.55,130.51,16.2379]
[1725846868629,1.91557003,130.54,130.48,22.2489]
[1725846869153,51.128,130.55,130.48,22.2489]
[1725846870230,6.1298,130.51,130.48,16.2379]
[1725846870551,45.0,130.5,130.45,16.0226]
[1725846872333,53.04546531,130.51,130.45,16.0226]
[1725846873056,51.1297,130.51,130.45,16.0226]
[1725846876048,6.1311,130.49,130.45,16.0226]
[1725846876256,45.0,130.48,130.45,16.0226]
[1725846877439,45.0,130.48,130.41,6.1559]
[1725846877440,1.91576531,130.47,130.42,15.7654]
[1725846877646,6.1321,130.46,130.42,15.7654]
[1725846877851,46.91576531,130.45,130.42,15.7654]
[1725846878651,1.91576531,130.45,130.42,15.7654]
[1725846879035,45.0,130.46,130.42,15.7654]
[1725846879234,1.91576531,130.45,130.42,15.7654]
[1725846879844,8.04846531,130.45,130.39,16.0476]
[1725846880044,45.0,130.44,130.39,16.0476]
[1725846880251,1.91576531,130.43,130.39,16.0476]
[1725846880454,1.91576531,130.42,130.39,16.0476]
[1725846881453,1.91576531,130.43,130.39,16.0476]
[1725846881854,1.91576531,130.42,130.39,16.0476]
[1725846882374,6.1335,130.43,130.39,16.0476]
[1725846882545,45.0,130.42,130.39,16.0476]
[1725846882945,45.0,130.42,130.36,15.5859]
[1725846883761,45.0,130.42,130.33,15.5859]
[1725846883762,6.1349,130.41,130.33,15.5859]
[1725846883985,45.0,130.4,130.33,15.5859]
[1725846884466,46.91576531,130.4,130.33,15.5859]
[1725846885358,51.135,130.4,130.33,15.5859]
[1725846885557,45.0,130.4,130.33,15.5859]
[1725846885865,51.1347,130.41,130.33,15.5859]
[1725846887067,53.05046531,130.41,130.33,15.5859]
[1725846887772,45.0,130.41,130.33,15.5859]
[1725846888271,46.91576531,130.41,130.33,15.5859]
[1725846889167,45.0,130.41,130.33,15.5859]
[1725846889573,45.0,130.42,130.33,15.5859]
[1725846890071,46.91576531,130.42,130.33,15.5859]
[1725846890452,45.0,130.42,130.33,15.5859]
[1725846891868,45.0,130.42,130.34,27.6910067]
[1725846892169,15.16205511,130.44,130.35,6.311]
[1725846892474,1.91576531,130.43,130.36,16.3383]
[1725846892669,15.16205511,130.44,130.36,16.3383]
[1725846893668,17.07782042,130.44,130.36,16.3383]
[1725846893883,45.0,130.43,130.36,16.3383]
[1725846894473,17.07782042,130.44,130.36,16.3383]
[1725846894650,15.16205511,130.44,130.36,44.0293067]
[1725846895068,1.91576531,130.43,130.36,44.0293067]
[1725846895263,1.91576531,130.42,130.36,44.0293067]
[1725846895659,15.16205511,130.44,130.36,16.3383]
[1725846895868,45.0,130.43,130.36,16.3383]
[1725846896174,45.0,130.43,130.36,27.43375606]
[1725846897371,46.91576531,130.43,130.36,27.43375606]
[1725846897670,45.0,130.43,130.36,27.43375606]
[1725846901083,45.0,130.43,130.36,16.3383]
[1725846901382,1.91576531,130.42,130.36,16.3383]
[1725846902682,6.1345,130.41,130.36,16.3383]
[1725846902883,45.0,130.4,130.36,16.3383]
[1725846903262,1.91576531,130.39,130.33,16.4242]
[1725846903584,8.05116531,130.39,130.33,16.4242]
[1725846903786,45.0,130.38,130.33,16.4242]
[1725846905373,45.0,130.39,130.33,16.4242]
[1725846906269,46.91576531,130.39,130.33,16.4242]
[1725846906666,8.05166531,130.38,130.33,16.4242]
[1725846906875,45.0,130.37,130.33,16.4242]
[1725846907070,1.91576531,130.36,130.33,16.4242]
[1725846907278,1.91576531,130.35,130.33,16.4242]
[1725846908187,1.91576531,130.36,130.33,16.4242]
[1725846908383,1.91576531,130.35,130.33,16.4242]
[1725846909187,46.91576531,130.37,130.33,16.4242]
[1725846910967,45.0,130.37,130.33,16.4242]
[1725846913191,51.1364,130.37,130.33,16.4242]
[1725846914290,1.91576531,130.36,130.33,16.4242]
[1725846914675,51.1364,130.37,130.33,16.4242]
[1725846915481,45.0,130.37,130.33,16.4242]
[1725846915664,1.91576531,130.36,130.33,16.4242]
[1725846915866,1.91576531,130.35,130.33,16.4242]
[1725846917502,1.91576531,130.36,130.33,16.4242]
[1725846917675,45.0,130.37,130.33,16.4242]
[1725846919105,51.1361,130.38,130.33,16.4242]
[1725846919994,8.05216531,130.37,130.33,16.4242]
[1725846920199,45.0,130.36,130.33,16.4242]
[1725846920372,1.91576531,130.35,130.33,16.4242]
[1725846921301,1.91576531,130.35,130.32,0.8334703]
[1725846921606,6.1381,130.34,130.32,0.8334703]
[1725846921781,45.0,130.33,130.32,0.8334703]
[1725846922186,46.91576531,130.33,130.32,0.8334703]
[1725846922499,51.1382,130.33,130.32,0.8334703]
[1725846925908,53.05396531,130.33,130.32,0.8334703]
[1725846926097,51.1382,130.33,130.32,0.8334703]
[1725846928713,53.05396531,130.33,130.32,0.8334703]
[1725846929034,51.1382,130.33,130.32,0.8334703]
[1725846929308,71.1382,130.33,130.32,0.8334703]
[1725846934216,6.1396,130.3,130.26,22.7343]
[1725846934403,46.91576531,130.29,130.26,22.7343]
[1725846934805,45.0,130.29,130.26,22.7343]
[1725846935012,45.0,130.3,130.26,22.7343]
[1725846935709,1.91576531,130.29,130.26,16.3914]
[1725846935919,51.1397,130.3,130.26,16.3914]
[1725846936821,1.91576531,130.29,130.26,16.3914]
[1725846936999,51.1397,130.3,130.26,16.3914]
[1725846938001,1.91576531,130.29,130.26,16.3914]
[1725846939039,8.05616531,130.29,130.26,16.3914]
[1725846939314,45.0,130.28,130.23,21.8094]
[1725846939517,1.91576531,130.27,130.23,21.8094]
[1725846939827,1.91576531,130.26,130.23,21.8094]
[1725846940128,6.1413,130.27,130.23,15.7834]
[1725846940423,45.0,130.26,130.23,15.7834]
[1725846940805,45.0,130.27,130.23,15.7834]
[1725846944937,1.91576531,130.26,130.23,15.7834]
[1725846946103,8.05716531,130.27,130.23,15.7834]
[1725846946302,1.91576531,130.25,130.23,15.7834]
[1725846947202,45.0,130.26,130.23,15.7834]
[1725846948547,6.1407,130.28,130.23,15.7834]
[1725846948831,8.05646531,130.28,130.23,15.7834]
[1725846949129,6.1402,130.29,130.23,15.7834]
[1725846949431,20.0,130.28,130.23,15.7834]
[1725846949631,1.91576531,130.27,130.23,15.7834]
[1725846950528,45.0,130.27,130.23,15.7834]
[1725846952243,51.1411,130.27,130.23,15.7834]
[1725846952837,1.91576531,130.26,130.23,15.7834]
[1725846953131,46.91576531,130.26,130.23,15.7834]
[1725846953609,45.0,130.26,130.23,15.7834]
[1725846957906,45.0,130.27,130.23,15.7834]
[1725846958940,46.91576531,130.27,130.23,15.7834]
[1725846959518,1.91576531,130.26,130.23,15.7834]
[1725846960142,8.05726531,130.26,130.2,15.6704]
[1725846960341,51.1421,130.25,130.2,15.6704]
[1725846961442,45.0,130.25,130.2,15.6704]
[1725846961739,6.1411,130.27,130.2,15.6704]
[1725846961941,20.0,130.26,130.2,15.6704]
[1725846962244,15.3498,130.3,130.21,11.11390136]
[1725846962245,6.14,130.3,130.21,11.11390136]
[1725846962537,21.91576531,130.29,130.21,11.11390136]
[1725846963150,1.91576531,130.29,130.21,11.11390136]
[1725846963652,46.91576531,130.29,130.21,11.11390136]
[1725846963850,53.05596531,130.29,130.21,11.11390136]
[1725846964252,45.0,130.29,130.21,11.11390136]
[1725846965847,1.91576531,130.28,130.2,15.6704]
[1725846966035,46.91576531,130.28,130.21,11.11390136]
[1725846966747,45.0,130.28,130.21,11.11390136]
[1725846970449,20.0,130.3,130.24,6.3672]
[1725846970657,20.0,130.31,130.24,6.3672]
[1725846971358,26.1392,130.31,130.24,6.3672]
[1725846971733,20.0,130.31,130.24,6.3672]
[1725846972050,1.91576531,130.3,130.25,16.3166]
[1725846972647,26.1388,130.32,130.25,16.3166]
[1725846973173,45.0,130.31,130.25,16.3166]
[1725846973349,20.0,130.32,130.25,16.3166]
[1725846973755,1.91576531,130.31,130.25,27.43050136]
[1725846973972,73.47881382,130.34,130.25,27.43050136]
[1725846974269,71.14588496,130.34,130.27,11.11390136]
[1725846975435,15.00818496,130.34,130.29,17.63650136]
[1725846975636,1.91576531,130.34,130.29,6.5226]
[1725846976935,6.1401,130.29,130.25,6.2445]
[1725846977142,46.91576531,130.28,130.25,6.2445]
[1725846977860,46.91576531,130.28,130.24,16.1205]
[1725846978058,51.1406,130.28,130.24,16.1205]
[1725846978246,101.1406,130.28,130.24,16.1205]
[1725846978446,51.1406,130.28,130.24,16.1205]
[1725846978761,45.0,130.28,130.24,16.1205]
[1725846979163,50.0,130.32,130.24,16.1205]
[1725846979461,20.0,130.31,130.24,16.1205]
[1725846980266,26.1393,130.31,130.24,16.1205]
[1725846980566,45.0,130.3,130.24,16.1205]
[1725846984543,51.1397,130.3,130.24,16.1205]
[1725846985068,20.0,130.29,130.24,16.1205]
[1725846985370,6.1411,130.27,130.24,16.1205]
[1725846985544,45.0,130.26,130.24,16.1205]
[1725846986764,45.0,130.27,130.24,16.1205]
[1725846987474,45.0,130.27,130.21,23.2785]
[1725846987842,51.91576531,130.26,130.21,16.6499]
[1725846988053,45.0,130.25,130.21,16.6499]
[1725846988256,1.91576531,130.24,130.21,16.6499]
[1725846988465,1.91576531,130.23,130.19,0.8334703]
[1725846988968,53.05916531,130.23,130.19,0.8334703]
[1725846989669,45.0,130.23,130.19,0.8334703]
[1725846994360,1.91576531,130.22,130.19,0.8334703]
[1725846994563,46.91576531,130.22,130.19,0.8334703]
[1725846995374,45.0,130.22,130.19,0.8334703]
[1725846995572,1.91576531,130.21,130.19,0.8334703]
[1725846995752,46.91576531,130.21,130.19,0.8334703]
[1725846995953,1.91576531,130.2,130.19,0.8334703]
[1725846996148,46.91576531,130.2,130.19,0.8334703]
[1725846996666,45.0,130.2,130.19,0.8334703]
[1725846999858,2.33022102,130.27,130.19,0.8334703]
[1725847000177,65.0,130.27,130.19,0.8334703]
[1725847000354,8.05736531,130.26,130.19,0.8334703]
[1725847000677,65.0,130.25,130.19,0.8334703]
[1725847000864,1.91576531,130.24,130.19,0.8334703]
[1725847001180,1.91576531,130.23,130.19,0.8334703]
[1725847001875,71.142,130.25,130.19,0.8334703]
[1725847002579,1.91576531,130.24,130.19,0.8334703]
[1725847003876,71.142,130.25,130.19,0.8334703]
[1725847005382,8.05836531,130.24,130.19,0.8334703]
[1725847005555,96.91576531,130.23,130.19,0.8334703]
[1725847005759,6.1439,130.21,130.19,0.8334703]
[1725847006060,73.06006531,130.2,130.19,0.8334703]
[1725847006370,71.1443,130.2,130.19,0.8334703]
[1725847006563,65.0,130.2,130.19,0.8334703]
[1725847007378,45.0,130.2,130.19,0.8334703]
[1725847011072,51.1443,130.2,130.19,0.8334703]
[1725847011680,71.1443,130.2,130.19,0.8334703]
[1725847012962,65.0,130.2,130.19,0.8334703]
[1725847014671,50.0,130.23,130.19,0.8334703]
[1725847014672,6.1434,130.23,130.19,0.8334703]
[1725847014877,21.91576531,130.22,130.19,0.8334703]
[1725847016169,46.91576531,130.21,130.19,0.8334703]
[1725847016491,1.91576531,130.2,130.19,0.8334703]
[1725847017068,8.06006531,130.2,130.19,0.8334703]
[1725847017388,101.1443,130.2,130.19,0.8334703]
[1725847017586,121.1443,130.2,130.19,0.8334703]
[1725847017788,123.06006531,130.2,130.19,0.8334703]
[1725847019271,121.1443,130.2,130.19,0.8334703]
[1725847022569,71.1443,130.2,130.19,0.8334703]
[1725847024299,20.0,130.2,130.19,0.8334703]
[1725847025474,8.55737387,130.23,130.19,0.8334703]
[1725847025687,6.1424,130.25,130.19,0.8334703]
[1725847027282,38.13535217,130.28,130.19,0.8334703]
[1725847027283,6.1438,130.22,130.19,0.8334703]
[1725847027494,8.05966531,130.21,130.19,0.8334703]
[1725847027797,1.91576531,130.2,130.19,0.8334703]
[1725847027989,6.1439,130.21,130.19,0.8334703]
[1725847028190,1.91576531,130.2,130.19,0.8334703]
[1725847028497,46.91576531,130.2,130.19,0.8334703]
[1725847029295,45.0,130.2,130.19,0.8334703]
[1725847030887,6.1435,130.22,130.19,0.8334703]
[1725847031095,20.0,130.21,130.19,0.8334703]
[1725847031495,21.91576531,130.21,130.19,0.8334703]
[1725847031796,20.0,130.21,130.19,0.8334703]
[1725847032200,45.0,130.2,130.19,0.8334703]
[1725847032502,20.0,130.22,130.19,0.8334703]
[1725847032695,28.05876531,130.23,130.19,0.8334703]
[1725847033499,26.143,130.23,130.19,0.8334703]
[1725847033692,45.0,130.22,130.19,0.8334703]
[1725847033893,45.0,130.23,130.19,0.8334703]
[1725847034402,1.91576531,130.22,130.19,0.8334703]
[1725847035196,51.1431,130.23,130.19,0.8334703]
[1725847035398,6.1424,130.25,130.19,0.8334703]
[1725847035578,8.51663397,130.26,130.19,0.8334703]
[1725847035778,20.0,130.25,130.19,0.8334703]
[1725847035977,8.51663397,130.26,130.19,0.8334703]
[1725847036774,6.1416,130.26,130.19,0.8334703]
[1725847036979,15.08007685,130.27,130.2,15.6042]
[1725847037206,1.91576531,130.26,130.2,15.6042]
[1725847038005,8.05746531,130.26,130.2,15.6042]
[1725847038524,45.0,130.25,130.2,15.6042]
[1725847038717,1.91576531,130.24,130.2,15.6042]
[1725847039017,1.91576531,130.23,130.2,15.6042]
[1725847042120,1.91576531,130.23,130.19,0.8334703]
[1725847042417,6.1439,130.21,130.19,0.8334703]
[1725847042625,46.91576531,130.2,130.19,0.8334703]
[1725847042918,45.0,130.2,130.19,0.8334703]
[1725847046022,26.1425,130.24,130.19,0.8334703]
[1725847046226,8.05776531,130.25,130.19,0.8334703]
[1725847047404,1.91576531,130.25,130.19,0.8334703]
[1725847047601,15.00521301,130.32,130.24,27.84051492]
[1725847047842,6.1391,130.32,130.24,27.84051492]
[1725847048128,21.7376301,130.33,130.26,27.84051492]
[1725847049104,21.7376301,130.33,130.24,27.84051492]
[1725847049315,56.14,130.3,130.21,16.0225]
[1725847049511,8.05606531,130.29,130.21,16.0225]
[1725847050022,6.1407,130.28,130.21,16.0225]
[1725847050229,46.91576531,130.27,130.21,16.0225]
[1725847050534,1.91576531,130.26,130.21,16.0225]
[1725847051002,45.0,130.27,130.21,16.0225]
[1725847051635,46.91576531,130.27,130.21,16.0225]
[1725847052128,45.0,130.27,130.21,16.0225]
[1725847052607,51.1411,130.27,130.21,16.0225]
[1725847057336,1.91576531,130.26,130.21,16.0225]
[1725847057525,51.91576531,130.26,130.19,0.8334703]
[1725847057830,51.1424,130.25,130.19,0.8334703]
[1725847058019,1.91576531,130.24,130.19,0.8334703]
[1725847058202,1.91576531,130.23,130.19,0.8334703]
[1725847058605,51.1424,130.25,130.19,0.8334703]
[1725847058831,1.91576531,130.24,130.19,0.8334703]
[1725847059735,51.1424,130.25,130.19,0.8334703]
[1725847060411,50.6424,130.25,130.19,0.8334703]
[1725847061109,51.91576531,130.24,130.19,0.8334703]
[1725847061314,6.144,130.21,130.19,0.8334703]
[1725847061513,1.91576531,130.2,130.19,0.8334703]
[1725847062219,8.06006531,130.2,130.19,0.8334703]
[1725847062528,6.1443,130.2,130.19,0.8334703]
[1725847062829,51.1443,130.2,130.19,0.8334703]
[1725847064938,6.1438,130.22,130.19,0.8334703]
[1725847065113,6.143,130.23,130.19,0.8334703]
[1725847066226,6.1434,130.22,130.19,0.8334703]
[1725847066425,46.91576531,130.21,130.19,0.8334703]
[1725847066630,1.91576531,130.2,130.19,0.8334703]
[1725847068337,51.1439,130.21,130.19,0.8334703]
[1725847077739,45.0,130.21,130.19,0.8334703]
[1725847077940,45.0,130.2,130.19,0.8334703]
[1725847081127,51.1443,130.2,130.19,0.8334703]
[1725847082849,45.0,130.2,130.19,0.8334703]
[1725847084549,6.1435,130.22,130.19,0.8334703]
[1725847084739,8.05876531,130.23,130.19,0.8334703]
[1725847084929,6.143,130.23,130.19,0.8334703]
[1725847085451,17.12769198,130.24,130.19,0.8334703]
[1725847085641,15.21192667,130.24,130.19,0.8334703]
[1725847086351,15.21192667,130.24,130.19,17.2416703]
[1725847087432,1.91576531,130.23,130.19,17.2416703]
[1725847088664,15.21192667,130.24,130.19,45.08218522]
[1725847088831,45.0,130.23,130.19,45.08218522]
[1725847093741,45.0,130.23,130.19,17.2416703]
[1725847094138,1.91576531,130.22,130.19,17.2416703]
[1725847095135,45.0,130.23,130.19,17.2416703]
[1725847096847,45.0,130.23,130.19,45.08218522]
[1725847097550,6.1406,130.28,130.19,45.08218522]
[1725847098254,8.05636531,130.28,130.19,45.08218522]
[1725847098455,6.1406,130.28,130.19,45.08218522]
[1725847098954,45.0,130.27,130.19,45.08218522]
[1725847099453,45.0,130.27,130.21,27.84051492]
[1725847100960,6.1402,130.29,130.21,27.84051492]
[1725847101269,6.1402,130.29,130.22,6.6504]
[1725847101442,8.05596531,130.29,130.22,6.6504]
[1725847101934,6.1397,130.3,130.23,15.2543]
[1725847102135,15.08004602,130.31,130.23,43.09481492]
[1725847102432,8.44869654,130.32,130.23,43.09481492]
[1725847102636,6.1391,130.32,130.23,43.09481492]
[1725847102837,296.16589857,130.35,130.22,6.6504]
[1725847102838,6.1379,130.34,130.27,27.84051492]
[1725847103071,6.1379,130.34,130.28,16.1167]
[1725847105746,45.0,130.33,130.28,16.1167]
[1725847108550,1.91576531,130.34,130.28,16.1167]
[1725847108744,15.27269857,130.35,130.28,16.1167]
[1725847109067,15.27269857,130.35,130.29,27.84051492]
[1725847109269,6.1364,130.37,130.29,27.84051492]
[1725847109493,6.1359,130.38,130.29,27.84051492]
[1725847111644,45.0,130.37,130.29,27.84051492]
[1725847113176,51.1359,130.38,130.29,27.84051492]
[1725847114877,6.1364,130.37,130.29,27.84051492]
[1725847115174,46.91576531,130.36,130.29,27.84051492]
[1725847115990,53.05256531,130.36,130.29,27.84051492]
[1725847116151,8.05306531,130.35,130.28,16.1167]
[1725847116351,45.0,130.34,130.28,16.1167]
[1725847116653,1.91576531,130.33,130.28,16.1167]
[1725847117884,45.0,130.34,130.28,16.1167]
[1725847118577,1.91576531,130.33,130.28,16.1167]
[1725847118780,6.1383,130.33,130.28,16.1167]
[1725847119081,53.05446531,130.32,130.28,16.1167]
[1725847119267,6.1397,130.3,130.24,16.4777]
[1725847119466,45.0,130.29,130.24,16.4777]
[1725847119666,46.91576531,130.29,130.24,16.4777]
[1725847120065,53.05596531,130.29,130.24,16.4777]
[1725847122478,51.1402,130.29,130.24,16.4777]
[1725847122874,53.05596531,130.29,130.24,16.4777]
[1725847123864,95.0,130.29,130.24,16.4777]
[1725847124053,95.0,130.29,130.2,6.6447]
[1725847124054,95.0,130.29,130.2,22.8596]
[1725847125469,6.1411,130.27,130.2,22.8596]
[1725847125672,45.0,130.26,130.2,22.8596]
[1725847125859,45.0,130.27,130.2,22.8596]
[1725847132088,45.0,130.27,130.21,27.84051492]
[1725847133888,45.0,130.27,130.2,22.8596]
[1725847134986,1.91576531,130.26,130.2,22.8596]
[1725847135163,6.1416,130.26,130.2,22.8596]
[1725847135485,45.0,130.25,130.2,22.8596]
[1725847135871,45.0,130.26,130.2,22.8596]
[1725847136789,45.0,130.27,130.2,22.8596]
[1725847137580,45.0,130.27,130.21,27.84051492]
[1725847138879,46.91576531,130.27,130.2,22.8596]
[1725847139593,45.0,130.27,130.2,22.8596]
[1725847139893,51.1411,130.27,130.2,22.8596]
[1725847140189,1.91576531,130.26,130.2,22.8596]
[1725847141188,6.1416,130.26,130.2,16.2149]
[1725847141385,45.0,130.25,130.2,16.2149]
[1725847143197,51.1423,130.25,130.2,16.2149]
[1725847143673,45.0,130.25,130.2,16.2149]
[1725847148069,45.0,130.26,130.2,27.33893542]
[1725847148270,46.91576531,130.26,130.2,16.2149]
[1725847148685,6.1421,130.25,130.2,16.2149]
[1725847148887,45.0,130.24,130.2,16.2149]
[1725847149373,45.0,130.25,130.2,16.2149]
[1725847151593,45.0,130.26,130.2,16.2149]
[1725847153611,51.1415,130.26,130.2,16.2149]
[1725847153799,53.05726531,130.26,130.2,16.2149]
[1725847154396,51.1415,130.26,130.2,16.2149]
[1725847155207,1.91576531,130.25,130.2,16.2149]
[1725847155405,6.1421,130.25,130.2,16.2149]
[1725847155614,46.91576531,130.24,130.2,16.2149]
[1725847155905,45.0,130.24,130.2,16.2149]
[1725847157699,45.0,130.25,130.2,16.2149]
[1725847170715,1.91576531,130.24,130.2,16.2149]
[1725847170931,1.91576531,130.23,130.2,16.2149]
[1725847172626,46.91576531,130.23,130.2,16.2149]
[1725847173340,45.0,130.23,130.2,16.2149]
[1725847176318,45.0,130.23,130.19,0.8334703]
[1725847176319,51.91576531,130.22,130.19,0.8334703]
[1725847176634,51.144,130.21,130.19,0.8334703]
[1725847185715,45.0,130.21,130.19,0.8334703]
[1725847186331,1.91576531,130.2,130.19,0.8334703]
[1725847186621,45.0,130.21,130.19,0.8334703]
[1725847189638,1.91576531,130.2,130.19,0.8334703]
[1725847189841,51.144,130.21,130.19,0.8334703]
[1725847190733,8.06006531,130.2,130.19,0.8334703]
[1725847190920,53.06006531,130.2,130.19,0.8334703]
[1725847191440,51.1443,130.2,130.19,0.8334703]
[1725847194250,53.06006531,130.2,130.19,0.8334703]
[1725847194954,51.1443,130.2,130.19,0.8334703]
[1725847196655,50.0,130.24,130.19,0.8334703]
[1725847197335,2.31297027,130.24,130.19,0.8334703]
[1725847197658,50.0,130.24,130.19,0.8334703]
[1725847198156,20.0,130.23,130.19,0.8334703]
[1725847198341,6.1435,130.22,130.19,0.8334703]
[1725847198750,26.143,130.23,130.19,0.8334703]
[1725847198936,45.0,130.22,130.19,0.8334703]
[1725847199458,1.91576531,130.21,130.19,0.8334703]
[1725847200251,51.1434,130.22,130.19,0.8334703]
[1725847200439,1.91576531,130.2,130.19,0.8334703]
[1725847200763,51.1434,130.22,130.19,0.8334703]
[1725847201058,6.1435,130.22,130.19,0.8334703]
[1725847201257,1.91576531,130.21,130.19,0.8334703]
[1725847201461,1.91576531,130.2,130.19,0.8334703]
[1725847202156,6.1441,130.21,130.19,0.8334703]
[1725847202345,45.0,130.2,130.19,0.8334703]
[1725847202552,101.1443,130.2,130.19,0.8334703]
[1725847203027,6.1456,130.18,130.14,6.1231]
[1725847203231,6.1456,130.18,130.13,16.1549]
[1725847203232,50.0,130.18,130.13,16.1549]
[1725847204054,6.1462,130.17,130.13,16.1549]
[1725847204234,46.91576531,130.16,130.13,16.1549]